[Event "Live Chess"]
[Site "Chess.com"]
[Date "2011.01.09"]
[Round "-"]
[White "hipposcottimus"]
[Black "dickensian"]
[Result "0-1"]
[CurrentPosition "r2qk2r/1p2pp1p/p2p1bp1/2p5/2P1P3/1PBP4/P3nPPP/2R1K2R w Kkq -"]
[Timezone "UTC"]
[ECO "B07"]
[ECOUrl "https://www.chess.com/openings/Pirc-Defense-Modern-Defense-Geller-System-2...Nf6"]
[UTCDate "2011.01.09"]
[UTCTime "22:16:51"]
[WhiteElo "1390"]
[BlackElo "1414"]
[TimeControl "120+12"]
[Termination "dickensian won by resignation"]
[StartTime "22:16:51"]
[EndDate "2011.01.09"]
[EndTime "22:19:47"]
[Link "https://www.chess.com/game/live/85923527"]

1. e4 {[%clk 0:02:00]} 1... d6 {[%clk 0:02:00]} 2. Nf3 {[%clk 0:02:11.7]} 2... Nf6 {[%clk 0:02:10.8]} 3. d3 {[%clk 0:02:21.5]} 3... g6 {[%clk 0:02:21.1]} 4. c4 {[%clk 0:02:32.8]} 4... c5 {[%clk 0:02:31.4]} 5. Nc3 {[%clk 0:02:44.4]} 5... Bg7 {[%clk 0:02:42.3]} 6. Be2 {[%clk 0:02:56]} 6... Nc6 {[%clk 0:02:52.8]} 7. Bd2 {[%clk 0:03:07.6]} 7... a6 {[%clk 0:03:01.5]} 8. b3 {[%clk 0:03:12.5]} 8... Bg4 {[%clk 0:02:55.4]} 9. Nd5 {[%clk 0:03:12.7]} 9... Bxf3 {[%clk 0:02:59.9]} 10. Nxf6+ {[%clk 0:03:08]} 10... Bxf6 {[%clk 0:03:05.6]} 11. Rc1 {[%clk 0:03:16]} 11... Bxe2 {[%clk 0:03:11.4]} 12. Qxe2 {[%clk 0:03:21]} 12... Nd4 {[%clk 0:03:08.1]} 13. Bc3 {[%clk 0:03:27.9]} 13... Nxe2 {[%clk 0:02:55.2]} 0-1

[Event "Live Chess"]
[Site "Chess.com"]
[Date "2011.01.09"]
[Round "-"]
[White "hipposcottimus"]
[Black "kumarhome"]
[Result "1-0"]
[CurrentPosition "3Q3r/pp3p1k/5P2/8/4Bq2/5P2/PP5P/6RK b - -"]
[Timezone "UTC"]
[ECO "C55"]
[ECOUrl "https://www.chess.com/openings/Italian-Game-Anti-Fried-Liver-Defense"]
[UTCDate "2011.01.09"]
[UTCTime "21:51:37"]
[WhiteElo "1398"]
[BlackElo "1341"]
[TimeControl "300+5"]
[Termination "hipposcottimus won by resignation"]
[StartTime "21:51:37"]
[EndDate "2011.01.09"]
[EndTime "22:03:38"]
[Link "https://www.chess.com/game/live/85916700"]

1. e4 {[%clk 0:05:00]} 1... e5 {[%clk 0:05:00]} 2. Nf3 {[%clk 0:04:59.5]} 2... Nc6 {[%clk 0:05:03.9]} 3. Bc4 {[%clk 0:04:58.1]} 3... h6 {[%clk 0:05:06.7]} 4. d4 {[%clk 0:05:01.5]} 4... exd4 {[%clk 0:05:09.5]} 5. Nxd4 {[%clk 0:05:02.1]} 5... d6 {[%clk 0:05:13.7]} 6. c3 {[%clk 0:04:55]} 6... Bd7 {[%clk 0:05:14.3]} 7. O-O {[%clk 0:04:58.2]} 7... Nf6 {[%clk 0:05:17.8]} 8. Re1 {[%clk 0:04:55.6]} 8... Be7 {[%clk 0:05:16.9]} 9. Nf5 {[%clk 0:04:54.9]} 9... O-O {[%clk 0:05:10]} 10. Bxh6 {[%clk 0:04:47]} 10... Bxf5 {[%clk 0:04:59.6]} 11. Bxg7 {[%clk 0:04:50.9]} 11... Kxg7 {[%clk 0:05:02]} 12. exf5 {[%clk 0:04:53.1]} 12... Rg8 {[%clk 0:04:43.9]} 13. Re3 {[%clk 0:04:50.2]} 13... Kf8 {[%clk 0:04:27.8]} 14. Nd2 {[%clk 0:04:42.9]} 14... Ne5 {[%clk 0:04:28.9]} 15. Bb3 {[%clk 0:04:34.2]} 15... Nfg4 {[%clk 0:03:54.6]} 16. Re2 {[%clk 0:04:00.8]} 16... Bh4 {[%clk 0:03:23.6]} 17. Ne4 {[%clk 0:03:51.4]} 17... Nf6 {[%clk 0:03:01.7]} 18. f4 {[%clk 0:03:42]} 18... Nf3+ {[%clk 0:02:55.4]} 19. Kh1 {[%clk 0:03:33.5]} 19... Ng4 {[%clk 0:02:04.9]} 20. gxf3 {[%clk 0:03:18.6]} 20... d5 {[%clk 0:01:45.3]} 21. Rd2 {[%clk 0:03:07.4]} 21... Nf2+ {[%clk 0:01:40.8]} 22. Nxf2 {[%clk 0:03:08.2]} 22... Bxf2 {[%clk 0:01:43.5]} 23. Rxf2 {[%clk 0:03:12.3]} 23... Qh4 {[%clk 0:01:35.4]} 24. Rd2 {[%clk 0:03:06.6]} 24... c6 {[%clk 0:01:32.2]} 25. c4 {[%clk 0:03:09.7]} 25... Rh8 {[%clk 0:01:31.7]} 26. cxd5 {[%clk 0:03:11.5]} 26... cxd5 {[%clk 0:01:24]} 27. Bxd5 {[%clk 0:03:00.8]} 27... Qxf4 {[%clk 0:01:22.7]} 28. Be4 {[%clk 0:02:59.8]} 28... Rc8 {[%clk 0:00:54.7]} 29. Rd8+ {[%clk 0:02:40.2]} 29... Rxd8 {[%clk 0:00:53.5]} 30. Qxd8+ {[%clk 0:02:41.9]} 30... Kg7 {[%clk 0:00:54]} 31. Rg1+ {[%clk 0:02:44.9]} 31... Kh7 {[%clk 0:00:49]} 32. f6+ {[%clk 0:02:41.3]} 1-0

[Event "Live Chess"]
[Site "Chess.com"]
[Date "2011.01.09"]
[Round "-"]
[White "mfleta"]
[Black "hipposcottimus"]
[Result "1-0"]
[CurrentPosition "5b1r/pp4pp/2n1N3/3r1p2/5P2/3B4/PPP1RkPP/2KR4 b - -"]
[Timezone "UTC"]
[ECO "D02"]
[ECOUrl "https://www.chess.com/openings/Queens-Pawn-Opening-Zukertort-Variation"]
[UTCDate "2011.01.09"]
[UTCTime "19:46:02"]
[WhiteElo "1368"]
[BlackElo "1391"]
[TimeControl "120+12"]
[Termination "mfleta won by checkmate"]
[StartTime "19:46:02"]
[EndDate "2011.01.09"]
[EndTime "19:52:20"]
[Link "https://www.chess.com/game/live/85881216"]

1. d4 {[%clk 0:02:00]} 1... d5 {[%clk 0:02:00]} 2. Nf3 {[%clk 0:02:07.9]} 2... f5 {[%clk 0:02:08]} 3. Nc3 {[%clk 0:02:03.3]} 3... e6 {[%clk 0:02:09.9]} 4. Bg5 {[%clk 0:02:10.4]} 4... Nf6 {[%clk 0:02:05.9]} 5. Ne5 {[%clk 0:02:15.4]} 5... Bd7 {[%clk 0:02:09.7]} 6. e3 {[%clk 0:02:14.5]} 6... Nc6 {[%clk 0:02:15.5]} 7. Bxf6 {[%clk 0:02:08]} 7... Qxf6 {[%clk 0:02:10.8]} 8. Nxd7 {[%clk 0:02:18.2]} 8... Kxd7 {[%clk 0:02:22.5]} 9. Bb5 {[%clk 0:02:15.7]} 9... e5 {[%clk 0:02:23.3]} 10. dxe5 {[%clk 0:02:02.6]} 10... Qe6 {[%clk 0:02:28.8]} 11. Qxd5+ {[%clk 0:01:56.3]} 11... Qxd5 {[%clk 0:02:29.8]} 12. Nxd5 {[%clk 0:02:07.2]} 12... Rd8 {[%clk 0:02:39]} 13. O-O-O {[%clk 0:02:14.6]} 13... Ke6 {[%clk 0:02:41.1]} 14. Nxc7+ {[%clk 0:01:59.2]} 14... Kxe5 {[%clk 0:02:49.4]} 15. f4+ {[%clk 0:02:02]} 15... Ke4 {[%clk 0:02:53.6]} 16. Bd3+ {[%clk 0:02:09.7]} 16... Kxe3 {[%clk 0:02:59.5]} 17. Ne6 {[%clk 0:01:59]} 17... Rd5 {[%clk 0:03:01.9]} 18. Rhe1+ {[%clk 0:02:03.2]} 18... Kf2 {[%clk 0:03:06.8]} 19. Re2# {[%clk 0:02:08.9]} 1-0

[Event "Live Chess"]
[Site "Chess.com"]
[Date "2011.01.09"]
[Round "-"]
[White "daddo1433"]
[Black "hipposcottimus"]
[Result "0-1"]
[CurrentPosition "2k5/1p5p/p4Bp1/PPn2p2/7r/K2r1P2/8/4b3 w - -"]
[Timezone "UTC"]
[ECO "C31"]
[ECOUrl "https://www.chess.com/openings/Kings-Gambit-Declined-Falkbeer-Accepted-Staunton-Charousek-Gambit-4...Nf6-5.Nc3"]
[UTCDate "2011.01.09"]
[UTCTime "19:35:24"]
[WhiteElo "1312"]
[BlackElo "1400"]
[TimeControl "600"]
[Termination "hipposcottimus won by resignation"]
[StartTime "19:35:24"]
[EndDate "2011.01.09"]
[EndTime "19:43:49"]
[Link "https://www.chess.com/game/live/85877885"]

1. e4 {[%clk 0:10:00]} 1... e5 {[%clk 0:10:00]} 2. f4 {[%clk 0:09:58.5]} 2... d5 {[%clk 0:09:50.8]} 3. exd5 {[%clk 0:09:54.9]} 3... e4 {[%clk 0:09:47.9]} 4. Nc3 {[%clk 0:09:49.6]} 4... Nf6 {[%clk 0:09:38.7]} 5. d3 {[%clk 0:09:43.7]} 5... Nxd5 {[%clk 0:09:25.9]} 6. Nxd5 {[%clk 0:09:40]} 6... Qxd5 {[%clk 0:09:24.4]} 7. dxe4 {[%clk 0:09:38.2]} 7... Qxe4+ {[%clk 0:09:20.9]} 8. Qe2 {[%clk 0:09:28.5]} 8... Bf5 {[%clk 0:09:19.4]} 9. Qxe4+ {[%clk 0:09:18.6]} 9... Bxe4 {[%clk 0:09:18.2]} 10. c3 {[%clk 0:09:16.6]} 10... Bc5 {[%clk 0:09:10.1]} 11. Nf3 {[%clk 0:09:12.8]} 11... Bxf3 {[%clk 0:09:08.1]} 12. gxf3 {[%clk 0:09:09.7]} 12... f5 {[%clk 0:09:00.6]} 13. Bd2 {[%clk 0:09:07.7]} 13... Nd7 {[%clk 0:08:34.8]} 14. O-O-O {[%clk 0:09:04.7]} 14... O-O-O {[%clk 0:08:27.5]} 15. Bh3 {[%clk 0:09:02.8]} 15... g6 {[%clk 0:08:20.1]} 16. b4 {[%clk 0:08:44.7]} 16... Bb6 {[%clk 0:08:15.2]} 17. a4 {[%clk 0:08:41]} 17... a6 {[%clk 0:08:13.1]} 18. a5 {[%clk 0:08:38]} 18... Ba7 {[%clk 0:08:11.8]} 19. c4 {[%clk 0:08:28.2]} 19... c6 {[%clk 0:07:53]} 20. Bc3 {[%clk 0:08:26.4]} 20... Be3+ {[%clk 0:07:46]} 21. Kc2 {[%clk 0:08:15.5]} 21... Rhe8 {[%clk 0:07:44.5]} 22. Bg2 {[%clk 0:07:34.2]} 22... Bxf4 {[%clk 0:07:27.8]} 23. h4 {[%clk 0:07:25.2]} 23... Re2+ {[%clk 0:07:16]} 24. Kb3 {[%clk 0:07:13.5]} 24... Rxg2 {[%clk 0:07:13.6]} 25. Rhe1 {[%clk 0:07:04.7]} 25... Rg3 {[%clk 0:06:16.7]} 26. Rd3 {[%clk 0:06:58.4]} 26... Rh3 {[%clk 0:06:12.7]} 27. Ka4 {[%clk 0:06:53.9]} 27... Rxh4 {[%clk 0:06:09.6]} 28. b5 {[%clk 0:06:52.2]} 28... cxb5+ {[%clk 0:05:59.7]} 29. cxb5 {[%clk 0:06:49.4]} 29... Bg3+ {[%clk 0:05:54.8]} 30. Kb3 {[%clk 0:06:36.7]} 30... Bxe1 {[%clk 0:05:51.3]} 31. Bf6 {[%clk 0:06:29]} 31... Nc5+ {[%clk 0:05:39.2]} 32. Ka3 {[%clk 0:06:14.7]} 32... Rxd3+ {[%clk 0:05:37]} 0-1

[Event "Live Chess"]
[Site "Chess.com"]
[Date "2011.01.09"]
[Round "-"]
[White "hipposcottimus"]
[Black "daddo1433"]
[Result "0-1"]
[CurrentPosition "8/6kp/6p1/P1Q2p2/8/1q2p3/6PP/3r2RK w - -"]
[Timezone "UTC"]
[ECO "C00"]
[ECOUrl "https://www.chess.com/openings/French-Defense-Steiner-Variation-2...d5-3.cxd5-exd5"]
[UTCDate "2011.01.09"]
[UTCTime "19:17:47"]
[WhiteElo "1394"]
[BlackElo "1318"]
[TimeControl "600"]
[Termination "daddo1433 won on time"]
[StartTime "19:17:47"]
[EndDate "2011.01.09"]
[EndTime "19:34:09"]
[Link "https://www.chess.com/game/live/85872817"]

1. e4 {[%clk 0:10:00]} 1... e6 {[%clk 0:10:00]} 2. c4 {[%clk 0:09:56.8]} 2... d5 {[%clk 0:09:54.9]} 3. cxd5 {[%clk 0:09:53]} 3... exd5 {[%clk 0:09:52.7]} 4. e5 {[%clk 0:09:52.2]} 4... Nc6 {[%clk 0:09:46.8]} 5. d4 {[%clk 0:09:50.4]} 5... Bf5 {[%clk 0:09:37.2]} 6. Bb5 {[%clk 0:09:15.3]} 6... Ne7 {[%clk 0:09:31.5]} 7. Nc3 {[%clk 0:09:12.5]} 7... a6 {[%clk 0:09:29.6]} 8. Ba4 {[%clk 0:09:09.8]} 8... b5 {[%clk 0:09:22]} 9. Nxb5 {[%clk 0:09:08.6]} 9... axb5 {[%clk 0:09:19.4]} 10. Bxb5 {[%clk 0:09:07.1]} 10... Qb8 {[%clk 0:09:08.1]} 11. Qe2 {[%clk 0:08:40.3]} 11... g6 {[%clk 0:09:04.7]} 12. Nf3 {[%clk 0:08:32.8]} 12... Bg7 {[%clk 0:09:02]} 13. O-O {[%clk 0:08:30]} 13... O-O {[%clk 0:08:58.2]} 14. Be3 {[%clk 0:08:12.7]} 14... Nb4 {[%clk 0:08:54.7]} 15. a4 {[%clk 0:08:04.6]} 15... c6 {[%clk 0:08:49.2]} 16. Rfd1 {[%clk 0:07:21.3]} 16... Nc2 {[%clk 0:08:45.5]} 17. Bxc6 {[%clk 0:07:12.1]} 17... Nxc6 {[%clk 0:08:37.9]} 18. Rac1 {[%clk 0:07:08]} 18... N6b4 {[%clk 0:08:29.7]} 19. Nh4 {[%clk 0:07:04]} 19... Be4 {[%clk 0:08:15.4]} 20. f3 {[%clk 0:06:59.1]} 20... Nxe3 {[%clk 0:08:11.9]} 21. fxe4 {[%clk 0:06:54.1]} 21... Nec2 {[%clk 0:07:55.1]} 22. b3 {[%clk 0:06:38]} 22... Qb6 {[%clk 0:07:30.7]} 23. Nf3 {[%clk 0:06:07.9]} 23... Nxd4 {[%clk 0:07:08.8]} 24. Nxd4 {[%clk 0:05:56]} 24... Bxe5 {[%clk 0:07:03.9]} 25. Qd2 {[%clk 0:05:37.8]} 25... dxe4 {[%clk 0:06:56.3]} 26. Kh1 {[%clk 0:05:33.9]} 26... Rfd8 {[%clk 0:06:53.6]} 27. Rc4 {[%clk 0:05:29.4]} 27... Na6 {[%clk 0:06:21.5]} 28. Qe3 {[%clk 0:04:45.5]} 28... f5 {[%clk 0:06:06.1]} 29. Re1 {[%clk 0:03:51]} 29... Bxd4 {[%clk 0:05:52.1]} 30. Qf4 {[%clk 0:03:28.2]} 30... Rac8 {[%clk 0:05:15.9]} 31. a5 {[%clk 0:03:16.2]} 31... Qxb3 {[%clk 0:05:07.9]} 32. Rxc8 {[%clk 0:01:34.3]} 32... Rxc8 {[%clk 0:05:03.8]} 33. Qd6 {[%clk 0:01:26.7]} 33... Bc5 {[%clk 0:04:24.2]} 34. Qxa6 {[%clk 0:01:10.5]} 34... Rd8 {[%clk 0:04:22]} 35. Rg1 {[%clk 0:00:18.3]} 35... Rd1 {[%clk 0:04:17.9]} 36. Qc8+ {[%clk 0:00:16]} 36... Kg7 {[%clk 0:04:15.3]} 37. Qxc5 {[%clk 0:00:13.4]} 37... e3 {[%clk 0:03:43.2]} 0-1

[Event "Live Chess"]
[Site "Chess.com"]
[Date "2011.01.09"]
[Round "-"]
[White "JoBrezni"]
[Black "hipposcottimus"]
[Result "1-0"]
[CurrentPosition "6k1/p2r4/6Q1/4R1p1/1P1P1p1p/2P2P2/5P2/3KN1q1 b - -"]
[Timezone "UTC"]
[ECO "D00"]
[ECOUrl "https://www.chess.com/openings/Queens-Pawn-Opening-1...d5-2.e3-c5"]
[UTCDate "2011.01.09"]
[UTCTime "18:58:08"]
[WhiteElo "1355"]
[BlackElo "1403"]
[TimeControl "600"]
[Termination "JoBrezni won on time"]
[StartTime "18:58:08"]
[EndDate "2011.01.09"]
[EndTime "19:15:29"]
[Link "https://www.chess.com/game/live/85866762"]

1. d4 {[%clk 0:10:00]} 1... d5 {[%clk 0:10:00]} 2. e3 {[%clk 0:09:57.1]} 2... c5 {[%clk 0:09:58.5]} 3. Ne2 {[%clk 0:09:47.9]} 3... cxd4 {[%clk 0:09:55.7]} 4. exd4 {[%clk 0:09:41.8]} 4... Bf5 {[%clk 0:09:42]} 5. c3 {[%clk 0:09:38]} 5... Nd7 {[%clk 0:09:39.4]} 6. Ng3 {[%clk 0:09:36]} 6... Bg6 {[%clk 0:09:37.4]} 7. Bb5 {[%clk 0:09:33.5]} 7... e6 {[%clk 0:09:31.1]} 8. O-O {[%clk 0:09:31.3]} 8... Be7 {[%clk 0:09:26.7]} 9. Nd2 {[%clk 0:09:29]} 9... f5 {[%clk 0:09:12]} 10. Nf3 {[%clk 0:09:25.9]} 10... Bf6 {[%clk 0:08:59.8]} 11. Bf4 {[%clk 0:09:15.7]} 11... Ne7 {[%clk 0:08:46.3]} 12. Be5 {[%clk 0:09:10.1]} 12... O-O {[%clk 0:08:42.5]} 13. Bxd7 {[%clk 0:09:02.7]} 13... Qxd7 {[%clk 0:08:39.5]} 14. Bxf6 {[%clk 0:09:00]} 14... Rxf6 {[%clk 0:08:38.5]} 15. Ne5 {[%clk 0:08:55.6]} 15... Qe8 {[%clk 0:08:28.7]} 16. Qb3 {[%clk 0:08:53.6]} 16... b5 {[%clk 0:08:12.3]} 17. a4 {[%clk 0:08:48.6]} 17... bxa4 {[%clk 0:07:49.9]} 18. Qxa4 {[%clk 0:08:37.9]} 18... Qb8 {[%clk 0:07:27.1]} 19. b4 {[%clk 0:08:30.6]} 19... Be8 {[%clk 0:07:02.6]} 20. Qc2 {[%clk 0:08:02.9]} 20... Ng6 {[%clk 0:06:58.3]} 21. Rfe1 {[%clk 0:07:41]} 21... Nxe5 {[%clk 0:06:34.2]} 22. Rxe5 {[%clk 0:07:35.9]} 22... Rh6 {[%clk 0:06:16.2]} 23. h3 {[%clk 0:07:31.4]} 23... f4 {[%clk 0:06:07.5]} 24. Ne2 {[%clk 0:07:27.3]} 24... Bg6 {[%clk 0:06:04.1]} 25. Qd2 {[%clk 0:07:13.2]} 25... f3 {[%clk 0:05:41.4]} 26. gxf3 {[%clk 0:07:07.5]} 26... Bf5 {[%clk 0:05:37.4]} 27. Nf4 {[%clk 0:06:58.3]} 27... Qd8 {[%clk 0:05:19]} 28. Kf1 {[%clk 0:06:47.7]} 28... Qh4 {[%clk 0:05:13.7]} 29. Ke2 {[%clk 0:06:36.6]} 29... g5 {[%clk 0:04:46.8]} 30. Nd3 {[%clk 0:05:42.9]} 30... Qxh3 {[%clk 0:04:20.8]} 31. Ra6 {[%clk 0:05:37.7]} 31... Qg2 {[%clk 0:03:40.7]} 32. Ne1 {[%clk 0:05:02.6]} 32... Qg1 {[%clk 0:03:22.6]} 33. Rxf5 {[%clk 0:04:18.2]} 33... exf5 {[%clk 0:02:26.5]} 34. Rxh6 {[%clk 0:04:11.8]} 34... Re8+ {[%clk 0:02:25.5]} 35. Kd1 {[%clk 0:03:52.1]} 35... f4 {[%clk 0:02:15.9]} 36. Rd6 {[%clk 0:03:25.4]} 36... h5 {[%clk 0:01:59.1]} 37. Rxd5 {[%clk 0:03:21.8]} 37... h4 {[%clk 0:01:55.1]} 38. Re5 {[%clk 0:03:02.4]} 38... Rd8 {[%clk 0:01:47.9]} 39. Qd3 {[%clk 0:02:47.8]} 39... Rd7 {[%clk 0:00:17.6]} 40. Qg6+ {[%clk 0:02:41.5]} 1-0

[Event "Live Chess"]
[Site "Chess.com"]
[Date "2011.01.09"]
[Round "-"]
[White "Jjudd"]
[Black "hipposcottimus"]
[Result "1-0"]
[CurrentPosition "6Q1/8/8/5K2/4N3/5k2/4r3/8 b - -"]
[Timezone "UTC"]
[ECO "C61"]
[ECOUrl "https://www.chess.com/openings/Ruy-Lopez-Opening-Birds-Defense"]
[UTCDate "2011.01.09"]
[UTCTime "05:35:31"]
[WhiteElo "1220"]
[BlackElo "1412"]
[TimeControl "420+5"]
[Termination "Jjudd won on time"]
[StartTime "05:35:31"]
[EndDate "2011.01.09"]
[EndTime "05:57:03"]
[Link "https://www.chess.com/game/live/85685117"]

1. e4 {[%clk 0:07:00]} 1... e5 {[%clk 0:07:00]} 2. Nf3 {[%clk 0:07:02.7]} 2... Nc6 {[%clk 0:06:59.9]} 3. Bb5 {[%clk 0:07:04.6]} 3... Nd4 {[%clk 0:07:02.1]} 4. c3 {[%clk 0:06:54]} 4... Nxb5 {[%clk 0:07:00.6]} 5. d4 {[%clk 0:06:48.5]} 5... d5 {[%clk 0:07:02.2]} 6. dxe5 {[%clk 0:06:29.7]} 6... Bg4 {[%clk 0:05:14.7]} 7. Bg5 {[%clk 0:06:20.9]} 7... Be7 {[%clk 0:05:09.6]} 8. Bxe7 {[%clk 0:06:19.5]} 8... Nxe7 {[%clk 0:05:12.8]} 9. exd5 {[%clk 0:06:17.2]} 9... Nxd5 {[%clk 0:05:10.1]} 10. c4 {[%clk 0:05:59.9]} 10... Nb4 {[%clk 0:05:03.9]} 11. cxb5 {[%clk 0:05:59]} 11... Bxf3 {[%clk 0:05:03.3]} 12. Qxd8+ {[%clk 0:05:57.8]} 12... Rxd8 {[%clk 0:05:02.2]} 13. gxf3 {[%clk 0:05:57]} 13... Nc2+ {[%clk 0:05:03.8]} 14. Ke2 {[%clk 0:05:53.6]} 14... Nxa1 {[%clk 0:04:58]} 15. Rc1 {[%clk 0:05:48.2]} 15... Rd7 {[%clk 0:04:54.4]} 16. Nd2 {[%clk 0:05:47.8]} 16... O-O {[%clk 0:04:44.1]} 17. Rxa1 {[%clk 0:05:48.9]} 17... c6 {[%clk 0:04:46.9]} 18. bxc6 {[%clk 0:05:49]} 18... bxc6 {[%clk 0:04:49.5]} 19. b4 {[%clk 0:05:45.4]} 19... a6 {[%clk 0:04:52.6]} 20. a4 {[%clk 0:05:48.6]} 20... Re8 {[%clk 0:04:36.8]} 21. f4 {[%clk 0:05:50.2]} 21... Re6 {[%clk 0:04:22.1]} 22. Nb3 {[%clk 0:05:46.4]} 22... f6 {[%clk 0:04:19.9]} 23. Nc5 {[%clk 0:05:47.6]} 23... fxe5 {[%clk 0:04:19]} 24. Nxe6 {[%clk 0:05:45.4]} 24... Re7 {[%clk 0:04:20.8]} 25. Nc5 {[%clk 0:05:34.6]} 25... exf4+ {[%clk 0:04:23]} 26. Kf3 {[%clk 0:05:37.7]} 26... Kf7 {[%clk 0:04:16.1]} 27. Kxf4 {[%clk 0:05:36]} 27... g6 {[%clk 0:04:14.5]} 28. Nxa6 {[%clk 0:05:34.7]} 28... Kf6 {[%clk 0:04:02.3]} 29. Nc5 {[%clk 0:05:34.7]} 29... h5 {[%clk 0:03:58]} 30. h4 {[%clk 0:05:35.4]} 30... Re5 {[%clk 0:03:56.7]} 31. Ne4+ {[%clk 0:05:19.3]} 31... Ke6 {[%clk 0:03:53.1]} 32. a5 {[%clk 0:05:18.2]} 32... Kd5 {[%clk 0:03:53]} 33. Nf6+ {[%clk 0:05:08.6]} 33... Ke6 {[%clk 0:03:32.9]} 34. Ne4 {[%clk 0:05:10.5]} 34... Kd5 {[%clk 0:03:35.9]} 35. Re1 {[%clk 0:05:02.4]} 35... Rf5+ {[%clk 0:03:37.4]} 36. Ke3 {[%clk 0:04:55]} 36... Re5 {[%clk 0:03:39.4]} 37. Rd1+ {[%clk 0:04:49.1]} 37... Kc4 {[%clk 0:03:40.7]} 38. a6 {[%clk 0:04:51.5]} 38... Kxb4 {[%clk 0:03:43.2]} 39. a7 {[%clk 0:04:54.9]} 39... Ra5 {[%clk 0:03:46.7]} 40. Rb1+ {[%clk 0:04:52.8]} 40... Kc4 {[%clk 0:03:42.6]} 41. Rb7 {[%clk 0:04:26]} 41... Kd5 {[%clk 0:03:44.5]} 42. Rd7+ {[%clk 0:03:56.2]} 42... Ke6 {[%clk 0:03:33.3]} 43. Rd6+ {[%clk 0:03:44.4]} 43... Ke5 {[%clk 0:03:20.5]} 44. Rxc6 {[%clk 0:03:32.3]} 44... Rxa7 {[%clk 0:03:16.3]} 45. f4+ {[%clk 0:03:25.8]} 45... Kf5 {[%clk 0:03:15.3]} 46. Rc5+ {[%clk 0:03:21.8]} 46... Kg4 {[%clk 0:03:17.5]} 47. Rg5+ {[%clk 0:03:07.9]} 47... Kxh4 {[%clk 0:03:05.1]} 48. Rxg6 {[%clk 0:03:11.2]} 48... Ra3+ {[%clk 0:03:00.3]} 49. Kd4 {[%clk 0:02:52.4]} 49... Kh3 {[%clk 0:02:52.8]} 50. f5 {[%clk 0:02:45.1]} 50... h4 {[%clk 0:02:31]} 51. f6 {[%clk 0:02:43.8]} 51... Ra6 {[%clk 0:02:27.6]} 52. Rg1 {[%clk 0:02:34.3]} 52... Ra7 {[%clk 0:02:16.5]} 53. Rf1 {[%clk 0:02:34.6]} 53... Rf7 {[%clk 0:02:14.4]} 54. Rf2 {[%clk 0:02:31.1]} 54... Kg4 {[%clk 0:02:10.2]} 55. Ke5 {[%clk 0:02:28.6]} 55... h3 {[%clk 0:02:13.7]} 56. Ke6 {[%clk 0:02:29.7]} 56... Rh7 {[%clk 0:01:57.8]} 57. f7 {[%clk 0:02:06.3]} 57... h2 {[%clk 0:01:56.7]} 58. Rxh2 {[%clk 0:02:01.7]} 58... Rxh2 {[%clk 0:02:00.8]} 59. f8=Q {[%clk 0:02:03.3]} 59... Re2 {[%clk 0:02:05.5]} 60. Qg8+ {[%clk 0:01:55.5]} 60... Kf3 {[%clk 0:02:08.4]} 61. Kf5 {[%clk 0:00:55.7]} 1-0

[Event "Live Chess"]
[Site "Chess.com"]
[Date "2011.01.09"]
[Round "-"]
[White "hipposcottimus"]
[Black "mshirmohammad"]
[Result "0-1"]
[CurrentPosition "r1bq1rk1/4ppbp/p2p2p1/2pP4/1pPn1P2/3P1N2/PP1BB1PP/R2Q1RK1 w - -"]
[Timezone "UTC"]
[ECO "B20"]
[ECOUrl "https://www.chess.com/openings/Sicilian-Defense"]
[UTCDate "2011.01.09"]
[UTCTime "05:14:45"]
[WhiteElo "1423"]
[BlackElo "1421"]
[TimeControl "600"]
[Termination "mshirmohammad won by resignation"]
[StartTime "05:14:45"]
[EndDate "2011.01.09"]
[EndTime "05:17:16"]
[Link "https://www.chess.com/game/live/85681501"]

1. e4 {[%clk 0:10:00]} 1... c5 {[%clk 0:10:00]} 2. Bb5 {[%clk 0:09:56.5]} 2... a6 {[%clk 0:09:52.8]} 3. Be2 {[%clk 0:09:47.3]} 3... Nc6 {[%clk 0:09:46.8]} 4. c4 {[%clk 0:09:44.1]} 4... Nf6 {[%clk 0:09:42.3]} 5. d3 {[%clk 0:09:41.6]} 5... g6 {[%clk 0:09:36.6]} 6. Bd2 {[%clk 0:09:37.5]} 6... Bg7 {[%clk 0:09:35.3]} 7. Nc3 {[%clk 0:09:32.3]} 7... d6 {[%clk 0:09:27.5]} 8. f4 {[%clk 0:09:29.4]} 8... O-O {[%clk 0:09:23.8]} 9. Nf3 {[%clk 0:09:27.8]} 9... b5 {[%clk 0:09:15.7]} 10. O-O {[%clk 0:09:12.7]} 10... b4 {[%clk 0:09:08.4]} 11. Nd5 {[%clk 0:09:02.4]} 11... Nxd5 {[%clk 0:08:57.3]} 12. exd5 {[%clk 0:08:56.7]} 12... Nd4 {[%clk 0:08:38.7]} 0-1